bitfinex-derivatives/quotes_SOLF0:USTF0_20241024
["timestamp","ask_amount","ask_price","bid_price","bid_amount"]
[1729763155513,2.9221,171.25,171.2,2.9229]
[1729763156314,2.9224,171.24,171.15,5.8075]
[1729763158013,2.9222,171.25,171.15,5.8075]
[1729763158413,15.79572592,171.26,171.2,2.9229]
[1729763159423,15.79572592,171.26,171.15,5.8075]
[1729763159424,15.79572592,171.26,171.21,2.9227]
[1729763160315,14.13782592,171.26,171.21,2.9227]
[1729763162318,2.9221,171.25,171.21,2.9227]
[1729763162715,11.21572592,171.26,171.19,2.923]
[1729763163117,2.9223,171.24,171.19,2.923]
[1729763163916,11.21572592,171.26,171.17,4.58]
[1729763164116,2.9222,171.25,171.2,2.923]
[1729763164724,2.9222,171.25,171.17,4.58]
[1729763164924,11.21572592,171.26,171.17,4.58]
[1729763165126,2.9219,171.27,171.17,15.79572592]
[1729763165618,2.9219,171.27,171.22,2.9225]
[1729763166015,15.79572592,171.28,171.22,2.9225]
[1729763166016,2.922,171.26,171.22,2.9225]
[1729763166322,15.79572592,171.28,171.18,4.58]
[1729763166619,2.922,171.26,171.18,4.58]
[1729763166916,4.58,171.28,171.18,4.58]
[1729763167117,4.58,171.28,171.19,11.21572592]
[1729763167320,4.58,171.3,171.19,11.21572592]
[1729763167714,2.9214,171.3,171.21,11.21572592]
[1729763167921,13.69872592,171.32,171.24,11.21572592]
[1729763167922,4.58,171.32,171.24,11.21572592]
[1729763168119,11.21572592,171.34,171.27,2.9217]
[1729763168311,2.9211,171.32,171.27,2.9217]
[1729763168920,2.9211,171.32,171.26,2.9219]
[1729763169122,2.9211,171.32,171.24,11.21572592]
[1729763169520,2.9211,171.32,171.27,2.9217]
[1729763170116,2.9211,171.31,171.27,2.9217]
[1729763171120,11.21572592,171.32,171.23,5.8211]
[1729763171324,11.21572592,171.32,171.23,4.58]
[1729763172222,2.9216,171.29,171.25,2.922]
[1729763172615,11.21572592,171.32,171.25,2.922]
[1729763173121,11.21572592,171.29,171.23,2.9224]
[1729763173327,14.19603655,171.29,171.23,2.9224]
[1729763174233,2.9219,171.27,171.23,2.9224]
[1729763174931,2.9216,171.29,171.25,2.9221]
[1729763175532,7.54230624,171.3,171.19,15.79572592]
[1729763175533,2.9214,171.3,171.21,11.21572592]
[1729763175746,4.58,171.33,171.24,11.21572592]
[1729763176033,4.58,171.33,171.25,4.58]
[1729763176235,7.5008,171.33,171.25,4.58]
[1729763176440,4.58,171.33,171.25,4.58]
[1729763177239,11.21572592,171.35,171.28,2.9216]
[1729763177439,4.58,171.34,171.28,2.9216]
[1729763178235,7.5007,171.34,171.28,2.9215]
[1729763179435,2.9207,171.34,171.28,2.9215]
[1729763180529,18.71612592,171.35,171.25,4.58]
[1729763180736,15.79572592,171.35,171.25,4.58]
[1729763181242,2.9207,171.34,171.28,2.9216]
[1729763183440,15.79572592,171.35,171.28,2.9216]
[1729763183645,2.9208,171.33,171.28,2.9216]
[1729763184346,14.13652592,171.33,171.28,2.9216]
[1729763186543,11.21572592,171.33,171.29,2.9214]
[1729763187740,15.79572592,171.35,171.25,1.2056]
[1729763187950,4.58,171.36,171.26,11.21572592]
[1729763188143,4.58,171.36,171.28,11.21572592]
[1729763188451,4.58,171.36,171.28,15.79572592]
[1729763188746,4.58,171.36,171.32,2.9208]
[1729763189450,2.9201,171.37,171.32,2.9208]
[1729763189851,11.21572592,171.4,171.28,15.79572592]
[1729763190041,4.58,171.38,171.34,2.9205]
[1729763190245,7.49281536,171.38,171.34,2.9205]
[1729763191050,7.49281536,171.38,171.28,15.79572592]
[1729763191251,7.49281536,171.38,171.35,2.9204]
[1729763192246,7.49281536,171.38,171.34,2.9205]
[1729763192755,11.21572592,171.4,171.36,2.9202]
[1729763192959,4.58,171.41,171.31,11.21572592]
[1729763193157,4.58,171.41,171.32,5.8305]
[1729763193549,2.9196,171.4,171.36,2.9202]
[1729763193857,2.96425147,171.39,171.36,2.9202]
[1729763194063,2.87603665,171.39,171.36,2.9202]
[1729763194259,2.9196,171.41,171.36,2.9202]
[1729763195758,2.9196,171.4,171.36,2.9202]
[1729763195960,2.86501345,171.39,171.36,2.9202]
[1729763196361,2.9196,171.4,171.36,2.9202]
[1729763197257,2.8936373,171.39,171.36,2.9202]
[1729763197756,2.93756848,171.39,171.36,2.9202]
[1729763198958,2.9196,171.4,171.36,2.9202]
[1729763200856,2.9196,171.4,171.32,5.8305]
[1729763200857,15.79572592,171.42,171.32,5.8305]
[1729763201068,15.79572592,171.42,171.37,2.92]
[1729763201361,15.79572592,171.42,171.32,8.2698]
[1729763201557,15.79572592,171.42,171.32,9.73026552]
[1729763202361,18.71502592,171.42,171.38,2.9199]
[1729763206265,7.18107381,171.41,171.38,2.9199]
[1729763206466,11.76107381,171.42,171.36,7.18107381]
[1729763206666,4.58,171.42,171.37,7.18107381]
[1729763206967,7.18107381,171.44,171.41,2.9193]
[1729763207153,7.18107381,171.44,171.37,7.18107381]
[1729763207766,7.18107381,171.44,171.41,2.9193]
[1729763208365,7.18107381,171.44,171.39,7.18107381]
[1729763208667,7.18107381,171.45,171.4,7.18107381]
[1729763209370,7.18107381,171.45,171.42,2.9192]
[1729763209868,7.4986,171.46,171.42,2.9192]
[1729763210071,14.67967381,171.46,171.43,2.9191]
[1729763210364,4.58,171.47,171.39,7.18107381]
[1729763210564,7.18107381,171.46,171.39,7.18107381]
[1729763210767,7.18107381,171.47,171.41,7.18107381]
[1729763211165,7.18107381,171.47,171.45,2.9187]
[1729763212973,11.76107381,171.5,171.47,2.9184]
[1729763213269,7.45902969,171.5,171.45,7.18107381]
[1729763213466,4.58,171.5,171.48,2.9181]
[1729763213667,7.56302528,171.52,171.47,7.18107381]
[1729763214071,7.56302528,171.52,171.49,2.9179]
[1729763214960,4.58,171.52,171.5,2.9178]
[1729763215872,4.58,171.52,171.45,11.20475627]
[1729763216069,4.58,171.52,171.49,2.918]
[1729763216267,4.58,171.52,171.44,4.58]
[1729763216666,4.58,171.52,171.48,2.9181]
[1729763216874,11.20475627,171.49,171.3,4.58]
[1729763217076,11.20475627,171.43,171.32,2.4726]
[1729763217264,18.67911834,171.43,171.32,3.9327835]
[1729763217469,18.67911834,171.43,171.32,2.4726]
[1729763217676,18.67911834,171.43,171.39,2.9196]
[1729763217975,18.67911834,171.43,171.32,2.4726]
[1729763218373,18.67911834,171.43,171.39,2.9196]
[1729763219165,4.58,171.43,171.33,11.20475627]
[1729763219372,4.58,171.43,171.41,2.9193]
[1729763219574,7.48866314,171.43,171.35,11.20475627]
[1729763220174,7.48866314,171.43,171.4,2.9196]
[1729763221064,7.48866314,171.43,171.35,11.20475627]
[1729763221469,4.58,171.43,171.35,11.20475627]
[1729763221669,4.58,171.43,171.41,2.9193]
[1729763223272,2.87586206,171.44,171.41,2.9193]
[1729763223479,7.45586206,171.44,171.41,2.9193]
[1729763223681,4.58,171.44,171.35,15.78475627]
[1729763223873,4.58,171.44,171.42,2.9192]
[1729763224075,4.58,171.44,171.42,2.7192]
[1729763224480,4.58,171.44,171.35,15.78475627]
[1729763224676,4.58,171.44,171.41,2.9194]
[1729763226285,4.58,171.44,171.42,2.9192]
[1729763226577,18.76630991,171.45,171.42,2.9192]
[1729763227175,18.76630991,171.45,171.35,15.78475627]
[1729763227383,4.58,171.45,171.35,15.78475627]
[1729763227784,4.58,171.46,171.38,11.20475627]
[1729763227988,4.58,171.46,171.39,2.4553]
[1729763228280,4.58,171.49,171.45,2.9187]
[1729763228487,11.20475627,171.56,171.44,11.20475627]
[1729763228786,4.58,171.52,171.49,2.9179]
[1729763229089,10.37523348,171.53,171.49,2.9179]
[1729763229286,2.918,171.5,171.46,2.9185]
[1729763229490,4.58,171.49,171.4,15.78475627]
[1729763229684,4.56,171.49,171.4,15.78475627]
[1729763230483,7.4782,171.49,171.45,2.9186]
[1729763230984,7.4782,171.49,171.44,2.9188]
[1729763231185,4.56,171.49,171.42,11.20475627]
[1729763231690,4.56,171.49,171.44,2.9189]
[1729763233291,4.56,171.49,171.45,2.9187]
[1729763233987,2.9186,171.46,171.41,2.9194]
[1729763234196,11.20475627,171.46,171.41,2.9194]
[1729763234382,4.56,171.45,171.33,11.20475627]
[1729763234583,11.20475627,171.43,171.37,2.92]
[1729763235090,14.11551112,171.43,171.37,2.92]
[1729763235594,2.9193,171.42,171.37,2.92]
[1729763236093,14.11551112,171.43,171.35,2.9204]
[1729763236094,2.9197,171.4,171.35,2.9204]
[1729763236788,7.4795,171.41,171.36,2.9202]
[1729763236985,4.56,171.41,171.33,14.83975627]
[1729763238091,4.56,171.41,171.37,2.92]
[1729763238492,4.56,171.41,171.38,2.9199]
[1729763241794,7.4794,171.41,171.33,14.83975627]
[1729763242700,4.56,171.41,171.37,2.92]
[1729763245599,4.56,171.41,171.33,14.83975627]
[1729763245803,4.56,171.41,171.33,16.30003319]
[1729763246296,4.56,171.41,171.37,2.92]
[1729763248400,4.56,171.41,171.38,2.9199]
[1729763249599,2.9196,171.4,171.36,2.9201]
[1729763251599,2.9196,171.4,171.37,2.9201]
[1729763255609,7.18192509,171.38,171.21,5.8455]
[1729763255802,7.18192509,171.34,171.28,7.18192509]
[1729763256004,7.18192509,171.34,171.29,1.46061721]
[1729763256205,7.18192509,171.34,171.3,1.46061721]
[1729763256514,7.18192509,171.34,171.31,1.46061721]
[1729763256805,10.10262509,171.34,171.3,2.9212]
[1729763257011,7.18192509,171.33,171.27,1.2135]
[1729763257212,7.18192509,171.33,171.28,1.46070458]
[1729763257513,2.921,171.32,171.29,1.46070458]
[1729763257711,2.921,171.32,171.3,1.46070458]
[1729763258011,1.2501,171.4,171.33,2.9207]
[1729763258209,7.18192509,171.38,171.31,7.18192509]
[1729763258511,4.58,171.39,171.29,11.21373959]
[1729763258702,2.9204,171.36,171.32,2.9208]
[1729763259210,7.43353779,171.39,171.28,4.58]
[1729763259211,2.9205,171.35,171.31,2.921]
[1729763260612,2.9205,171.35,171.32,2.9209]
[1729763263715,4.56,171.37,171.28,4.58]
[1729763264015,4.56,171.37,171.29,1.46067106]
[1729763264210,4.56,171.37,171.3,1.46067106]
[1729763264412,4.56,171.37,171.31,1.46067106]
[1729763264717,4.56,171.37,171.32,1.46067106]
[1729763264916,4.56,171.37,171.28,4.58]
[1729763265108,4.56,171.37,171.29,1.46061377]
[1729763265416,2.9203,171.36,171.33,2.9207]
[1729763266712,4.56,171.37,171.28,4.58]
[1729763266912,11.21373959,171.34,171.29,1.46069345]
[1729763267112,4.56,171.33,171.22,5.8216]
[1729763267316,4.56,171.33,171.25,1.46097612]
[1729763267617,11.21373959,171.31,171.22,5.8216]
[1729763267817,11.21373959,171.31,171.23,1.46119264]
[1729763268113,11.21373959,171.31,171.24,1.46119264]
[1729763268316,2.9215,171.29,171.25,2.9221]
[1729763268502,2.9215,171.29,171.22,5.8216]
[1729763268703,2.98002399,171.29,171.23,1.46125083]
[1729763268910,11.21373959,171.31,171.24,1.46125083]
[1729763269120,11.21373959,171.31,171.22,1.2616]
[1729763269312,2.9217,171.28,171.25,2.9221]
[1729763269902,11.21373959,171.31,171.25,2.9221]
[1729763269903,2.9215,171.29,171.25,2.9221]
[1729763270105,5.89860183,171.29,171.25,2.9221]
[1729763271015,2.9215,171.29,171.25,2.9221]
[1729763271418,2.9212,171.31,171.27,2.9217]
[1729763271916,15.77373959,171.33,171.27,2.9217]
[1729763273220,2.9213,171.31,171.27,2.9217]
[1729763274015,15.77373959,171.33,171.23,1.46122578]
[1729763274720,15.77373959,171.33,171.22,5.8216]
[1729763274914,2.9213,171.3,171.22,5.8216]
[1729763275114,15.77373959,171.33,171.22,5.8216]
[1729763275421,2.9213,171.3,171.26,2.9219]
[1729763276321,2.9215,171.29,171.26,2.9219]
[1729763277821,2.9213,171.31,171.22,17.03533959]
[1729763278012,4.56,171.33,171.22,17.03533959]
[1729763279017,2.9211,171.31,171.28,2.9215]
[1729763279625,2.93894062,171.3,171.26,2.9219]
[1729763279825,15.77373959,171.33,171.26,2.9219]
[1729763280925,2.9214,171.3,171.26,2.9219]
[1729763281123,11.21373959,171.36,171.24,11.21373959]
[1729763281424,2.9211,171.32,171.24,12.41763959]
[1729763281625,4.56,171.35,171.24,12.41763959]
[1729763282325,2.9212,171.31,171.28,2.9215]
[1729763282728,2.89323881,171.3,171.24,12.41763959]
[1729763282925,2.9215,171.29,171.26,2.9219]
[1729763283333,4.56,171.35,171.24,12.41763959]
[1729763283625,2.9213,171.3,171.27,2.9218]
[1729763284417,4.56,171.35,171.24,12.41763959]
[1729763284621,4.56,171.35,171.26,2.9219]
[1729763285325,11.21373959,171.3,171.22,2.9226]
[1729763285624,2.9225,171.24,171.17,1.2027]
[1729763285817,2.9225,171.24,171.17,5.7627]
[1729763286021,2.9225,171.24,171.2,2.9229]
[1729763286221,2.9228,171.22,171.17,2.66401432]
[1729763286425,2.9228,171.22,171.17,1.2027]
[1729763286627,2.9228,171.22,171.18,2.9232]
[1729763287220,2.9228,171.22,171.19,2.9231]
[1729763287422,4.56,171.25,171.17,1.2027]
[1729763287724,4.56,171.25,171.17,4.1261]
[1729763287929,2.9229,171.21,171.17,4.1261]
[1729763288631,4.56,171.25,171.17,1.2027]
[1729763288632,2.9231,171.2,171.17,1.2027]
[1729763289522,4.56,171.25,171.17,4.1261]
[1729763289523,2.9228,171.21,171.17,4.1261]
[1729763289832,4.56,171.25,171.17,1.2027]
[1729763290017,4.56,171.25,171.18,11.21373959]
[1729763290624,7.4822,171.25,171.18,11.21373959]
[1729763290827,1.244,171.29,171.18,11.21373959]
[1729763291029,4.56,171.28,171.21,11.21373959]
[1729763291222,2.9218,171.27,171.23,2.9223]
[1729763291729,2.9221,171.26,171.22,2.9226]
[1729763296729,7.4817,171.28,171.24,2.9222]
[1729763296935,11.21373959,171.35,171.23,11.21373959]
[1729763297140,4.56,171.33,171.25,11.21373959]
[1729763297335,2.9213,171.3,171.27,2.9218]
[1729763299430,2.9213,171.3,171.25,11.21373959]
[1729763299637,2.9213,171.3,171.26,2.9219]
[1729763302240,2.9218,171.27,171.24,2.9222]
[1729763302436,4.56,171.29,171.2,15.77373959]
[1729763303244,2.9221,171.25,171.22,2.9226]
[1729763303830,2.9219,171.27,171.23,2.9224]
[1729763305142,2.9219,171.27,171.2,8.69613959]
[1729763305643,2.9219,171.27,171.24,2.9222]
[1729763305843,2.9217,171.28,171.22,11.21373959]
[1729763306742,2.9218,171.27,171.22,11.21373959]
[1729763307139,4.56,171.29,171.22,11.21373959]
[1729763307539,7.49711772,171.29,171.22,11.21373959]
[1729763307739,4.56,171.29,171.26,2.9218]
[1729763308342,2.9213,171.3,171.26,2.9218]
[1729763308737,2.9213,171.3,171.22,11.21373959]
[1729763308738,2.9213,171.3,171.27,2.9218]
[1729763309446,2.9213,171.3,171.22,4.13553959]
[1729763310334,2.9213,171.3,171.27,2.9217]
[1729763310549,2.9208,171.33,171.25,15.77373959]
[1729763310737,2.9208,171.33,171.28,11.21373959]
[1729763310934,17.53,171.5,171.26,2.51]
[1729763310935,7.41353779,171.39,171.3,11.21373959]
[1729763311343,2.9202,171.37,171.33,2.9206]
[1729763311548,2.85353779,171.39,171.32,11.21373959]
[1729763311844,4.56,171.4,171.32,11.21373959]
[1729763312048,4.56,171.4,171.34,2.9206]
[1729763312235,7.51944595,171.4,171.31,1.1989]
[1729763312434,2.9204,171.35,171.28,4.56]
[1729763312638,11.21373959,171.39,171.28,4.56]
[1729763313238,2.9204,171.36,171.32,2.9208]
[1729763314346,2.9209,171.33,171.29,2.9213]
[1729763315739,4.56,171.36,171.27,11.21373959]
[1729763315935,7.4804,171.36,171.29,11.21373959]
[1729763316137,2.99183335,171.35,171.29,11.21373959]
[1729763316651,2.99183335,171.35,171.3,2.9212]
[1729763316845,2.99183335,171.35,171.27,11.21373959]
[1729763317244,2.9209,171.33,171.3,2.9213]
[1729763320246,2.9213,171.31,171.28,2.9216]
[1729763320554,2.9213,171.31,171.26,1.2925]
[1729763320746,2.9209,171.33,171.27,2.9217]
[1729763320954,14.12733538,171.35,171.27,2.9217]
[1729763321146,14.12733538,171.35,171.26,1.2925]
[1729763321446,11.21373959,171.32,171.22,1.1764]
[1729763321651,4.56,171.31,171.23,1.46125992]
[1729763321951,2.9215,171.29,171.22,1.1764]
[1729763322152,2.9215,171.29,171.23,1.46124956]
[1729763322353,2.9215,171.29,171.22,1.1764]
[1729763322551,2.9215,171.29,171.23,1.4612856]
[1729763322847,2.9215,171.29,171.22,1.1764]
[1729763323048,4.56,171.31,171.23,1.46127324]
[1729763323246,2.9221,171.26,171.22,2.9225]
[1729763323545,2.9221,171.26,171.18,4.56]
[1729763323750,2.9221,171.26,171.19,1.46147723]
[1729763323947,2.9221,171.26,171.2,1.46147723]
[1729763324253,2.9221,171.26,171.21,1.46147723]
[1729763324545,2.9221,171.26,171.18,4.56]
[1729763324753,2.9221,171.26,171.19,1.46152299]
[1729763324948,2.9221,171.26,171.2,1.46152299]
[1729763325156,2.9221,171.26,171.21,1.46152299]
[1729763325452,4.56,171.27,171.18,4.56]
[1729763325752,15.77373959,171.27,171.19,1.46151662]
[1729763325947,15.77373959,171.27,171.22,2.9226]
[1729763327654,2.9222,171.25,171.22,2.9226]
[1729763327958,2.88935858,171.24,171.22,2.9226]
[1729763328149,2.88935858,171.24,171.18,4.56]
[1729763328350,2.9224,171.24,171.17,5.7585]
[1729763328555,5.79422251,171.24,171.17,5.7585]
[1729763328851,5.79422251,171.24,171.19,2.9231]
[1729763329053,5.79422251,171.24,171.17,5.7585]
[1729763330255,5.79422251,171.24,171.21,2.9228]
[1729763332859,2.9227,171.22,171.17,8.6819]
[1729763333153,2.9227,171.22,171.17,5.7585]
[1729763333351,4.56,171.23,171.17,1.1985]
[1729763333560,2.9229,171.21,171.17,1.1985]
[1729763334559,2.9229,171.21,171.18,2.9232]
[1729763334960,2.9227,171.22,171.18,2.9232]
[1729763336949,7.4826,171.23,171.2,2.9229]
[1729763339363,2.923,171.21,171.17,4.1219]
[1729763339570,2.923,171.21,171.17,1.1985]
[1729763340266,2.923,171.21,171.18,2.9233]
[1729763341664,11.21373959,171.22,171.15,2.4747]
[1729763341961,11.21373959,171.2,171.14,2.9239]
[1729763342259,4.56,171.19,171.14,2.9239]
[1729763342460,2.9234,171.18,171.15,2.9238]
[1729763342966,4.56,171.19,171.1,3.6604]
[1729763344170,11.21373959,171.17,171.03,15.77373959]
[1729763344367,11.21373959,171.17,171.04,1.2543]
[1729763344561,2.9245,171.12,171.08,2.9249]
[1729763344764,7.4845,171.12,171.08,2.9249]
[1729763344966,4.56,171.12,171.04,2.4812]
[1729763345466,15.77373959,171.12,171.04,2.4812]
[1729763345664,2.9249,171.09,171.05,2.9255]
[1729763346064,15.77373959,171.12,170.92,155.33597398]
[1729763346265,2.9252,171.08,171.03,2.9258]
[1729763346472,7.4852,171.08,171.03,2.9258]
[1729763346761,4.56,171.08,171.02,1.2958]
[1729763346966,4.56,171.08,171.05,2.9254]
[1729763347161,11.21373959,171.12,171.02,1.2958]
[1729763347362,7.4846,171.11,171.03,13.73543959]
[1729763348272,7.43338719,171.11,171.03,13.73543959]
[1729763348570,2.9249,171.09,171.03,13.73543959]
[1729763349071,7.43338719,171.11,171.03,13.73543959]
[1729763349272,7.43338719,171.11,171.03,2.5217]
[1729763350157,7.43338719,171.11,171.03,13.73543959]
[1729763350566,7.4846,171.11,171.07,2.9252]
[1729763350771,2.9246,171.11,171.07,2.9252]
[1729763350965,4.56,171.12,171.11,2.9245]
[1729763351164,4.56,171.14,171.11,2.9245]
[1729763351675,4.56,171.14,171.06,11.21373959]
[1729763351871,4.56,171.14,171.08,11.21373959]
[1729763352071,4.56,171.17,171.09,1.2001]
[1729763352273,11.21373959,171.2,171.09,12.41383959]
[1729763352468,4.56,171.18,171.11,11.21373959]
[1729763352663,4.56,171.22,171.13,11.21373959]
[1729763352875,7.4828,171.22,171.18,2.9233]
[1729763353176,4.56,171.22,171.13,11.21373959]
[1729763354476,4.56,171.22,171.19,2.923]
[1729763354668,4.56,171.22,171.13,11.21373959]
[1729763355072,2.9222,171.25,171.16,11.21373959]
[1729763355376,4.56,171.26,171.17,2.4976]
[1729763355679,4.56,171.26,171.18,12.49773959]
[1729763356268,4.56,171.26,171.23,2.9224]
[1729763356573,4.56,171.26,171.18,12.49773959]
[1729763358677,11.21373959,171.29,171.18,12.49773959]
[1729763358982,4.56,171.3,171.2,11.21373959]
[1729763359284,4.56,171.3,171.21,4.56]
[1729763359983,2.9216,171.28,171.24,2.9222]
[1729763360477,11.21373959,171.29,171.24,2.9222]
[1729763360682,11.21373959,171.29,171.21,4.56]
[1729763362081,4.56,171.3,171.21,4.56]
[1729763362284,2.9218,171.28,171.24,2.9223]
[1729763362488,4.56,171.3,171.21,4.56]
[1729763363483,2.9219,171.27,171.23,2.9223]
[1729763363681,2.9219,171.27,171.21,4.56]
[1729763364390,4.56,171.3,171.21,4.56]
[1729763364583,2.9217,171.28,171.24,2.9223]
[1729763366788,4.56,171.3,171.21,4.56]
[1729763366987,67.2807042,171.34,171.22,11.21373959]
[1729763367188,4.56,171.33,171.25,11.21373959]
[1729763367387,4.56,171.33,171.26,1.2123]
[1729763367587,2.9211,171.32,171.28,2.9216]
[1729763369797,2.9212,171.31,171.28,2.9216]
[1729763371194,11.21373959,171.32,171.2,11.21373959]
[1729763371401,2.9219,171.27,171.23,2.9225]
[1729763372200,2.9219,171.27,171.24,2.9223]
[1729763373193,2.9244042,171.34,171.23,11.21373959]
[1729763373403,2.921,171.32,171.25,11.21373959]
[1729763373693,4.56,171.35,171.25,11.21373959]
[1729763373894,2.9209,171.32,171.28,2.9215]
[1729763374599,4.56,171.35,171.28,2.9215]
[1729763374802,2.9211,171.31,171.28,2.9215]
[1729763375294,2.9216,171.29,171.22,11.21373959]
[1729763375502,4.56,171.31,171.22,11.21373959]
[1729763376094,7.4812,171.31,171.27,2.9218]
[1729763376296,4.56,171.31,171.22,11.21373959]
[1729763376899,2.9213,171.3,171.27,2.9218]
[1729763377102,15.77373959,171.31,171.21,1.2268]
[1729763377498,15.77373959,171.31,171.23,2.9224]
[1729763378202,15.77373959,171.31,171.21,1.2268]
[1729763378605,11.21373959,171.26,171.18,1.284]
[1729763378802,2.9228,171.22,171.18,4.2072]
[1729763379099,2.9736454,171.25,171.18,1.284]
[1729763379409,2.9226,171.23,171.19,2.9231]
[1729763380003,2.923,171.2,171.17,2.9235]
[1729763380196,2.9736454,171.25,171.14,17.05553959]
[1729763380905,2.9228,171.22,171.18,2.9233]
[1729763381508,2.9228,171.22,171.14,17.05553959]
[1729763381509,14.84163959,171.3,171.16,11.21373959]
[1729763381703,4.56,171.29,171.18,11.21373959]
[1729763381903,2.9221,171.26,171.22,2.9226]
[1729763382508,2.9222,171.25,171.22,2.9226]
[1729763382813,4.56,171.3,171.21,4.13603959]
[1729763383108,4.56,171.3,171.22,1.2963]
[1729763383506,4.56,171.3,171.24,2.9222]
[1729763383507,7.4813,171.3,171.24,2.9222]
[1729763383702,4.56,171.32,171.24,2.9222]
[1729763384106,2.9217,171.28,171.24,2.9222]
[1729763387612,2.9217,171.28,171.25,2.9221]
[1729763388414,2.9214,171.3,171.26,2.9218]
[1729763388614,2.9214,171.3,171.24,11.21373959]
[1729763388913,4.56,171.32,171.24,11.21373959]
[1729763389109,2.9212,171.31,171.24,11.21373959]
[1729763389617,2.9212,171.31,171.27,2.9217]
[1729763390210,2.9215,171.29,171.25,2.922]
[1729763391312,2.9215,171.29,171.26,2.922]
[1729763391519,3.599,171.37,171.26,11.21373959]
[1729763391834,4.56,171.36,171.3,2.9212]
[1729763392115,2.9208,171.33,171.3,2.9212]
[1729763392321,4.56,171.36,171.26,4.56]
[1729763392508,2.9206,171.35,171.31,2.921]
[1729763392713,5.7631,171.37,171.31,2.921]
[1729763393217,4.56,171.37,171.29,11.21373959]
[1729763393418,4.56,171.37,171.33,2.9207]
[1729763393619,4.56,171.37,171.3,1.278]
[1729763393813,7.4802,171.37,171.3,1.278]
[1729763394008,7.4802,171.37,171.34,2.9206]
[1729763394208,7.4802,171.37,171.3,1.278]
[1729763394818,4.56,171.37,171.3,1.278]
[1729763395120,4.56,171.39,171.31,11.21373959]
[1729763395316,17.62121653,171.42,171.31,11.21373959]
[1729763395519,2.9198,171.39,171.34,11.21373959]
[1729763395817,4.56,171.41,171.37,2.92]
[1729763396121,4.56,171.41,171.34,11.21373959]
[1729763396621,7.4795,171.41,171.37,2.92]
[1729763397014,7.4795,171.41,171.36,2.9202]
[1729763397015,2.9197,171.4,171.36,2.9202]
[1729763397412,4.56,171.41,171.34,11.21373959]
[1729763397620,4.56,171.41,171.33,2.9206]
[1729763397825,4.56,171.41,171.32,1.2834]
[1729763398014,4.56,171.41,171.31,12.44483959]
[1729763398318,2.9202,171.37,171.33,2.9207]
[1729763399020,2.92,171.38,171.34,2.9205]
[1729763400614,4.56,171.41,171.34,2.9205]
[1729763400823,11.21373959,171.37,171.27,12.42523959]
[1729763401028,4.56,171.36,171.27,12.42523959]
[1729763401223,2.93586817,171.35,171.27,12.42523959]
[1729763401416,2.84957375,171.44,171.27,12.42523959]
[1729763401417,5.8356,171.51,171.34,11.21373959]
[1729763401621,11.21373959,171.49,171.37,11.21373959]
[1729763401823,14.11776918,171.49,171.37,11.21373959]
[1729763402120,0.95855085,171.48,171.38,2.9198]
[1729763402516,11.21373959,171.46,171.35,11.21373959]
[1729763402729,4.56,171.45,171.32,11.21373959]
[1729763402924,11.21373959,171.43,171.32,11.21373959]
[1729763403323,2.9199,171.39,171.35,2.9203]
[1729763403721,4.54,171.41,171.33,2.9206]
[1729763403722,2.9202,171.37,171.33,2.9206]
[1729763404028,15.75373959,171.41,171.31,4.56]
[1729763404433,2.92,171.38,171.34,2.9206]
[1729763404730,2.92,171.38,171.31,4.56]
[1729763404931,2.9198,171.39,171.36,2.9202]
[1729763405331,2.9198,171.39,171.32,11.21373959]
[1729763405722,1.263,171.44,171.35,14.13403959]
[1729763406026,4.54,171.43,171.35,11.21373959]
[1729763406630,2.9193,171.42,171.38,2.9198]